[Event "*** Titled Tuesday Blitz"]
[Site "Chess.com"]
[Date "2018.06.05"]
[Round "2"]
[White "saikrishnaReturns"]
[Black "Nyzhnyk_Illia"]
[Result "0-1"]
[WhiteElo "2636"]
[BlackElo "2728"]
[TimeControl "180+2"]
[EndTime "13:25:04 PDT"]
[Termination "Nyzhnyk_Illia won by checkmate"]

1. e4 {[%clk 0:03:01.9]} 1... e6 {[%clk 0:02:59.1]} 2. d3 {[%clk 0:02:59.4]}
2... c5 {[%clk 0:02:59.1]} 3. Nf3 {[%clk 0:02:58.1]} 3... Nc6 {[%clk 0:03:00.5]}
4. g3 {[%clk 0:02:56.3]} 4... g6 {[%clk 0:03:01.8]} 5. Bg2 {[%clk 0:02:57.1]}
5... Bg7 {[%clk 0:03:03]} 6. h4 {[%clk 0:02:58.3]} 6... Nf6 {[%clk 0:02:59.7]}
7. Nbd2 {[%clk 0:02:56.6]} 7... d6 {[%clk 0:03:00.2]} 8. c3 {[%clk 0:02:50.2]}
8... e5 {[%clk 0:03:00.5]} 9. Nc4 {[%clk 0:02:49.9]} 9... Be6 {[%clk 0:03:00.8]}
10. Ng5 {[%clk 0:02:42.1]} 10... Bg4 {[%clk 0:03:00.4]} 11. f3 {[%clk
0:02:42.6]} 11... Bc8 {[%clk 0:03:00.9]} 12. f4 {[%clk 0:02:41.4]} 12... h6
{[%clk 0:02:45.9]} 13. Nf3 {[%clk 0:02:40.9]} 13... Nh5 {[%clk 0:02:43]} 14.
fxe5 {[%clk 0:02:17.8]} 14... dxe5 {[%clk 0:02:43.5]} 15. Kf2 {[%clk 0:02:18.8]}
15... f5 {[%clk 0:02:40.5]} 16. Be3 {[%clk 0:02:14.2]} 16... Qe7 {[%clk
0:02:30.6]} 17. b4 {[%clk 0:01:48.9]} 17... cxb4 {[%clk 0:02:20]} 18. cxb4
{[%clk 0:01:50.8]} 18... Nxb4 {[%clk 0:02:15.2]} 19. Rb1 {[%clk 0:01:31.3]}
19... Nc6 {[%clk 0:02:03.9]} 20. Rb5 {[%clk 0:01:27.7]} 20... O-O {[%clk
0:01:06.7]} 21. Bc5 {[%clk 0:01:27.3]} 21... Qf6 {[%clk 0:01:08.2]} 22. Ne3
{[%clk 0:01:05.6]} 22... Rd8 {[%clk 0:01:02.9]} 23. Nd5 {[%clk 0:01:04.6]} 23...
Qf7 {[%clk 0:01:04.1]} 24. Qb3 {[%clk 0:01:01.9]} 24... b6 {[%clk 0:01:01.4]}
25. Be7 {[%clk 0:00:50.9]} 25... Rxd5 {[%clk 0:00:54.8]} 26. exd5 {[%clk
0:00:50.6]} 26... Nxe7 {[%clk 0:00:55.2]} 27. d6 {[%clk 0:00:49.2]} 27... Be6
{[%clk 0:00:53.9]} 28. Qa3 {[%clk 0:00:30.9]} 28... Nc6 {[%clk 0:00:50.7]} 29.
Rc1 {[%clk 0:00:29.3]} 29... Rc8 {[%clk 0:00:44.5]} 30. Qa6 {[%clk 0:00:26.5]}
30... e4 {[%clk 0:00:40.8]} 31. Nd2 {[%clk 0:00:21]} 31... Bd4+ {[%clk
0:00:37.7]} 32. Ke1 {[%clk 0:00:21.5]} 32... Nxg3 {[%clk 0:00:39.1]} 33. Qxc8+
{[%clk 0:00:18.7]} 33... Bxc8 {[%clk 0:00:39.9]} 34. Rxc6 {[%clk 0:00:20.3]}
34... Bd7 {[%clk 0:00:41.4]} 35. Rc7 {[%clk 0:00:21.5]} 35... Bxb5 {[%clk
0:00:42.6]} 36. Rxf7 {[%clk 0:00:22.1]} 36... Kxf7 {[%clk 0:00:44.5]} 37. dxe4
{[%clk 0:00:22.9]} 37... Bc3 {[%clk 0:00:42.5]} 38. exf5 {[%clk 0:00:22.7]}
38... Nxf5 {[%clk 0:00:44.4]} 39. Kd1 {[%clk 0:00:23.5]} 39... Ne3+ {[%clk
0:00:45.4]} 40. Kc1 {[%clk 0:00:23.9]} 40... Bxd2+ {[%clk 0:00:46.8]} 41. Kxd2
{[%clk 0:00:24.7]} 41... Nxg2 {[%clk 0:00:48.7]} 42. Kc3 {[%clk 0:00:26]} 42...
Nxh4 {[%clk 0:00:49.5]} 43. Kb4 {[%clk 0:00:27.3]} 43... Bd7 {[%clk 0:00:51.1]}
44. Ka3 {[%clk 0:00:27.8]} 44... Nf5 {[%clk 0:00:52.8]} 45. Kb4 {[%clk
0:00:29.3]} 45... Nxd6 {[%clk 0:00:54.5]} 46. Kb3 {[%clk 0:00:30.7]} 46... h5
{[%clk 0:00:56.2]} 47. Ka3 {[%clk 0:00:32.1]} 47... h4 {[%clk 0:00:58.1]} 48.
Kb4 {[%clk 0:00:33.5]} 48... h3 {[%clk 0:01:00]} 49. Kc3 {[%clk 0:00:35]} 49...
h2 {[%clk 0:01:01.9]} 50. Kb4 {[%clk 0:00:36.5]} 50... h1=Q {[%clk 0:01:03.8]}
51. Ka3 {[%clk 0:00:38]} 51... g5 {[%clk 0:01:05.3]} 52. Kb4 {[%clk 0:00:39.4]}
52... g4 {[%clk 0:01:07]} 53. Kc3 {[%clk 0:00:41.2]} 53... g3 {[%clk 0:01:08.7]}
54. Kb4 {[%clk 0:00:43]} 54... g2 {[%clk 0:01:10.3]} 55. Kb3 {[%clk 0:00:44.4]}
55... g1=B {[%clk 0:01:10.8]} 56. Ka3 {[%clk 0:00:46]} 56... Qd5 {[%clk
0:01:11.5]} 57. Kb4 {[%clk 0:00:46.3]} 57... Qxa2 {[%clk 0:01:12.5]} 58. Kc3
{[%clk 0:00:47.4]} 58... b5 {[%clk 0:01:13.8]} 59. Kb4 {[%clk 0:00:48.7]} 59...
a5+ {[%clk 0:01:14.6]} 60. Kc3 {[%clk 0:00:50.6]} 60... b4+ {[%clk 0:01:16.1]}
61. Kd3 {[%clk 0:00:52]} 61... b3 {[%clk 0:01:17.5]} 62. Kc3 {[%clk 0:00:53.4]}
62... b2 {[%clk 0:01:18.9]} 63. Kd3 {[%clk 0:00:55.1]} 63... b1=B+ {[%clk
0:01:18.5]} 64. Kc3 {[%clk 0:00:57]} 64... a4 {[%clk 0:01:17.9]} 65. Kb4 {[%clk
0:00:57.1]} 65... a3 {[%clk 0:01:19.1]} 66. Kc3 {[%clk 0:00:58.3]} 66... Qe2
{[%clk 0:01:19.1]} 67. Kb4 {[%clk 0:00:59.3]} 67... a2 {[%clk 0:01:20.6]} 68.
Kb3 {[%clk 0:01:00.7]} 68... a1=B {[%clk 0:01:20]} 69. Ka3 {[%clk 0:01:01.8]}
69... Bc5+ {[%clk 0:01:19.2]} 70. Kb3 {[%clk 0:01:02.9]} 70... Be6+ {[%clk
0:01:19.1]} 71. Ka4 {[%clk 0:01:03.6]} 71... Bc2+ {[%clk 0:01:19.6]} 72. Ka5
{[%clk 0:01:04.5]} 72... Bc3# {[%clk 0:01:20.7]} 0-1

[Event "*** Titled Tuesday Blitz"]
[Site "Chess.com"]
[Date "2018.06.05"]
[Round "2"]
[White "EndgameGrinder"]
[Black "nabukatnezarr"]
[Result "1-0"]
[WhiteElo "2533"]
[BlackElo "2303"]
[TimeControl "180+2"]
[EndTime "13:25:04 PDT"]
[Termination "EndgameGrinder won by resignation"]

1. e4 {[%clk 0:03:01.9]} 1... c6 {[%clk 0:02:58.8]} 2. d4 {[%clk 0:03:02.3]}
2... d5 {[%clk 0:02:58]} 3. Nd2 {[%clk 0:03:03.8]} 3... dxe4 {[%clk 0:02:57.9]}
4. Nxe4 {[%clk 0:03:05.7]} 4... Bf5 {[%clk 0:02:59.1]} 5. Ng3 {[%clk 0:03:05.6]}
5... Bg6 {[%clk 0:03:00.6]} 6. h4 {[%clk 0:03:07.1]} 6... h6 {[%clk 0:03:01.7]}
7. Nf3 {[%clk 0:03:08.1]} 7... Nd7 {[%clk 0:03:03]} 8. h5 {[%clk 0:03:09.1]}
8... Bh7 {[%clk 0:03:03.8]} 9. Bd3 {[%clk 0:03:10.8]} 9... Bxd3 {[%clk
0:03:04.8]} 10. Qxd3 {[%clk 0:03:12.7]} 10... Ngf6 {[%clk 0:03:05]} 11. Bd2
{[%clk 0:03:13.3]} 11... e6 {[%clk 0:03:02.9]} 12. O-O-O {[%clk 0:03:14.4]}
12... Bd6 {[%clk 0:03:01.8]} 13. Ne4 {[%clk 0:03:15.2]} 13... Nxe4 {[%clk
0:03:02.5]} 14. Qxe4 {[%clk 0:03:17.1]} 14... Nf6 {[%clk 0:03:03.1]} 15. Qe2
{[%clk 0:03:18.6]} 15... Bc7 {[%clk 0:03:00.1]} 16. c4 {[%clk 0:03:06.2]} 16...
O-O {[%clk 0:02:57.3]} 17. Bc3 {[%clk 0:03:02.4]} 17... b5 {[%clk 0:02:56.3]}
18. Ne5 {[%clk 0:02:58.4]} 18... bxc4 {[%clk 0:02:46.7]} 19. g4 {[%clk
0:02:44.5]} 19... Bxe5 {[%clk 0:02:28.9]} 20. dxe5 {[%clk 0:02:43.9]} 20... Nd5
{[%clk 0:02:30.4]} 21. Qxc4 {[%clk 0:02:40.4]} 21... Qb6 {[%clk 0:02:11.7]} 22.
g5 {[%clk 0:02:35.5]} 22... Qxf2 {[%clk 0:02:01.4]} 23. gxh6 {[%clk 0:02:25.9]}
23... gxh6 {[%clk 0:01:59.2]} 24. Bd2 {[%clk 0:01:32.9]} 24... Ne3 {[%clk
0:01:17.6]} 25. Rdg1+ {[%clk 0:01:31.8]} 25... Kh8 {[%clk 0:01:15]} 26. Qd4
{[%clk 0:01:22.6]} 26... Nd1 {[%clk 0:01:07.5]} 27. Qg4 {[%clk 0:00:49.4]} 27...
Rg8 {[%clk 0:00:54.3]} 28. Qxd1 {[%clk 0:00:50.3]} 28... Rad8 {[%clk 0:00:50.5]}
29. Rxg8+ {[%clk 0:00:45.1]} 29... Rxg8 {[%clk 0:00:52.4]} 30. Rf1 {[%clk
0:00:43.9]} 30... Qd4 {[%clk 0:00:46.7]} 31. Bc3 {[%clk 0:00:39.5]} 31... Qe4
{[%clk 0:00:40.5]} 32. Qf3 {[%clk 0:00:33.4]} 32... Qxf3 {[%clk 0:00:26]} 33.
Rxf3 {[%clk 0:00:35.3]} 33... Rg1+ {[%clk 0:00:27.3]} 34. Kc2 {[%clk 0:00:35.8]}
34... Kg7 {[%clk 0:00:28.9]} 35. Kd3 {[%clk 0:00:26.3]} 35... Rg5 {[%clk
0:00:29.4]} 36. Ke4 {[%clk 0:00:26.8]} 36... Rxh5 {[%clk 0:00:30.2]} 37. Rg3+
{[%clk 0:00:27.7]} 37... Kh7 {[%clk 0:00:31]} 38. Kd4 {[%clk 0:00:23.6]} 38...
Rf5 {[%clk 0:00:25]} 39. Kc5 {[%clk 0:00:24.3]} 39... f6 {[%clk 0:00:25.9]} 40.
Kd6 {[%clk 0:00:22.7]} 40... fxe5 {[%clk 0:00:26.7]} 41. Kxe6 {[%clk 0:00:24.1]}
41... Rf2 {[%clk 0:00:25.7]} 42. Bxe5 {[%clk 0:00:24.9]} 42... h5 {[%clk
0:00:26.9]} 43. Rg7+ {[%clk 0:00:21.3]} 43... Kh6 {[%clk 0:00:28.3]} 44. Rf7
{[%clk 0:00:21.6]} 44... Re2 {[%clk 0:00:28.9]} 45. Kf5 {[%clk 0:00:19.4]} 45...
Rf2+ {[%clk 0:00:29.4]} 46. Bf4+ {[%clk 0:00:20.6]} 46... Rxf4+ {[%clk
0:00:28.8]} 47. Kxf4 {[%clk 0:00:22.5]} 47... Kg6 {[%clk 0:00:30.7]} 48. Rxa7
{[%clk 0:00:23.1]} 1-0

[Event "*** Titled Tuesday Blitz"]
[Site "Chess.com"]
[Date "2018.06.05"]
[Round "2"]
[White "GMSrinath"]
[Black "penguingm1"]
[Result "1-0"]
[WhiteElo "2670"]
[BlackElo "2681"]
[TimeControl "180+2"]
[EndTime "13:25:05 PDT"]
[Termination "GMSrinath won by resignation"]

1. e4 {[%clk 0:03:01.9]} 1... e5 {[%clk 0:02:58.5]} 2. Nf3 {[%clk 0:03:02.8]}
2... Nc6 {[%clk 0:02:59.9]} 3. Nc3 {[%clk 0:03:03.2]} 3... Nf6 {[%clk
0:03:00.9]} 4. d4 {[%clk 0:03:04.7]} 4... exd4 {[%clk 0:03:02.8]} 5. Nxd4 {[%clk
0:03:06.3]} 5... Bb4 {[%clk 0:03:04.4]} 6. Nxc6 {[%clk 0:03:07.3]} 6... bxc6
{[%clk 0:03:06.3]} 7. Bd3 {[%clk 0:03:08.9]} 7... d5 {[%clk 0:03:06.3]} 8. exd5
{[%clk 0:03:09.8]} 8... cxd5 {[%clk 0:03:08.2]} 9. O-O {[%clk 0:03:11.1]} 9...
O-O {[%clk 0:03:09.7]} 10. h3 {[%clk 0:03:12.1]} 10... c6 {[%clk 0:03:09.5]} 11.
Qf3 {[%clk 0:03:13.3]} 11... h6 {[%clk 0:03:08.7]} 12. Bf4 {[%clk 0:03:12.1]}
12... Bd6 {[%clk 0:03:08.6]} 13. Ne2 {[%clk 0:03:13.6]} 13... Rb8 {[%clk
0:02:33.1]} 14. b3 {[%clk 0:03:13.3]} 14... Rb4 {[%clk 0:02:29.9]} 15. c4 {[%clk
0:03:05]} 15... Be6 {[%clk 0:02:26.2]} 16. Rad1 {[%clk 0:03:03.4]} 16... Qe7
{[%clk 0:02:08.7]} 17. Rfe1 {[%clk 0:02:54.1]} 17... Bxf4 {[%clk 0:01:39.2]} 18.
Nxf4 {[%clk 0:02:56]} 18... Re8 {[%clk 0:01:39.1]} 19. Nxe6 {[%clk 0:02:15.1]}
19... fxe6 {[%clk 0:01:40]} 20. Qg3 {[%clk 0:02:16.7]} 20... Qd7 {[%clk
0:01:16.6]} 21. Re3 {[%clk 0:02:04.1]} 21... c5 {[%clk 0:01:10.1]} 22. Rde1
{[%clk 0:02:03.3]} 22... Rb6 {[%clk 0:01:05.7]} 23. Rf3 {[%clk 0:01:51.5]} 23...
Rf8 {[%clk 0:00:23.1]} 24. Bg6 {[%clk 0:00:51.9]} 24... Rd6 {[%clk 0:00:19.9]}
25. cxd5 {[%clk 0:00:46.9]} 25... exd5 {[%clk 0:00:18.2]} 26. Bf5 {[%clk
0:00:45.8]} 26... Qd8 {[%clk 0:00:19.3]} 27. Rfe3 {[%clk 0:00:43.2]} 27... d4
{[%clk 0:00:14.9]} 28. Re7 {[%clk 0:00:40.7]} 28... Rf7 {[%clk 0:00:10.4]} 29.
Bh7+ {[%clk 0:00:21.2]} 29... Kf8 {[%clk 0:00:08.2]} 30. Rxf7+ {[%clk
0:00:19.3]} 30... Kxf7 {[%clk 0:00:10.1]} 31. Bg6+ {[%clk 0:00:21.1]} 31... Kf8
{[%clk 0:00:11.5]} 32. Qe5 {[%clk 0:00:21.7]} 32... Rd5 {[%clk 0:00:10.1]} 33.
Qe6 {[%clk 0:00:22.5]} 33... Qd7 {[%clk 0:00:11.6]} 34. Qa6 {[%clk 0:00:18.6]}
34... Rd6 {[%clk 0:00:09.8]} 35. Qd3 {[%clk 0:00:16.4]} 35... Rc6 {[%clk
0:00:09.5]} 36. g4 {[%clk 0:00:16.9]} 36... Qd6 {[%clk 0:00:09]} 37. Qf5 {[%clk
0:00:16.8]} 37... Kg8 {[%clk 0:00:06.2]} 38. Re8+ {[%clk 0:00:16.7]} 38... Qf8
{[%clk 0:00:03.5]} 39. Bh7+ {[%clk 0:00:10.1]} 39... Nxh7 {[%clk 0:00:02.6]} 40.
Qd5+ {[%clk 0:00:11.6]} 40... Re6 {[%clk 0:00:03.4]} 41. Qxe6+ {[%clk
0:00:11.7]} 1-0

[Event "*** Titled Tuesday Blitz"]
[Site "Chess.com"]
[Date "2018.06.05"]
[Round "2"]
[White "Ehsan_GhaemMaghami"]
[Black "sergiochess83"]
[Result "1-0"]
[WhiteElo "2561"]
[BlackElo "2758"]
[TimeControl "180+2"]
[EndTime "13:25:09 PDT"]
[Termination "Ehsan_GhaemMaghami won by resignation"]

1. c4 {[%clk 0:03:01.9]} 1... Nf6 {[%clk 0:02:59.8]} 2. Nc3 {[%clk 0:03:01.6]}
2... e5 {[%clk 0:03:00.5]} 3. g3 {[%clk 0:03:01.2]} 3... Bb4 {[%clk 0:03:01]} 4.
Bg2 {[%clk 0:03:01]} 4... O-O {[%clk 0:03:02.1]} 5. d3 {[%clk 0:03:00.5]} 5...
c6 {[%clk 0:02:57.2]} 6. Nf3 {[%clk 0:02:42.9]} 6... Re8 {[%clk 0:02:57]} 7. O-O
{[%clk 0:02:42.7]} 7... h6 {[%clk 0:02:55.1]} 8. Bd2 {[%clk 0:02:38.7]} 8... d5
{[%clk 0:02:54]} 9. Nxd5 {[%clk 0:02:16.2]} 9... cxd5 {[%clk 0:02:55.9]} 10.
Bxb4 {[%clk 0:02:16.4]} 10... Nc6 {[%clk 0:02:46]} 11. Ba3 {[%clk 0:01:55.4]}
11... Be6 {[%clk 0:02:25.5]} 12. cxd5 {[%clk 0:01:55]} 12... Bxd5 {[%clk
0:02:27.4]} 13. b3 {[%clk 0:01:52.5]} 13... Qb6 {[%clk 0:02:04.6]} 14. Bb2
{[%clk 0:01:50.4]} 14... Rad8 {[%clk 0:02:05.3]} 15. Qe1 {[%clk 0:01:34.1]}
15... e4 {[%clk 0:01:38.7]} 16. dxe4 {[%clk 0:01:29.8]} 16... Nxe4 {[%clk
0:01:36.5]} 17. Rc1 {[%clk 0:01:10.1]} 17... a5 {[%clk 0:01:31.2]} 18. Nh4
{[%clk 0:00:53.9]} 18... f6 {[%clk 0:00:58]} 19. Rd1 {[%clk 0:00:34.9]} 19...
Nb4 {[%clk 0:00:54.6]} 20. Rd4 {[%clk 0:00:29.7]} 20... Nc2 {[%clk 0:00:50]} 21.
Qd1 {[%clk 0:00:29.6]} 21... Nxd4 {[%clk 0:00:49.7]} 22. Bxd4 {[%clk 0:00:30.4]}
22... Qb4 {[%clk 0:00:46.9]} 23. Qa1 {[%clk 0:00:22]} 23... Bc6 {[%clk 0:00:32]}
24. Rd1 {[%clk 0:00:16.3]} 24... a4 {[%clk 0:00:20.1]} 25. Nf5 {[%clk
0:00:13.3]} 25... axb3 {[%clk 0:00:18.9]} 26. axb3 {[%clk 0:00:13.4]} 26... Qxb3
{[%clk 0:00:17.7]} 27. Rb1 {[%clk 0:00:12.7]} 27... Qe6 {[%clk 0:00:14.6]} 28.
Ne3 {[%clk 0:00:11.4]} 28... Nd2 {[%clk 0:00:15]} 29. Rd1 {[%clk 0:00:11.4]}
29... Nb3 {[%clk 0:00:14.6]} 30. Qc3 {[%clk 0:00:09.3]} 30... Bxg2 {[%clk
0:00:14.1]} 31. Kxg2 {[%clk 0:00:09.9]} 31... Nxd4 {[%clk 0:00:12.2]} 32. Rxd4
{[%clk 0:00:10.5]} 32... Rxd4 {[%clk 0:00:13.1]} 33. Qxd4 {[%clk 0:00:11.7]}
33... Qe4+ {[%clk 0:00:14.6]} 34. Qxe4 {[%clk 0:00:12.1]} 34... Rxe4 {[%clk
0:00:16.5]} 35. Kf3 {[%clk 0:00:12.9]} 35... Re6 {[%clk 0:00:17.5]} 36. Nd5
{[%clk 0:00:13.2]} 36... b5 {[%clk 0:00:18.2]} 37. e4 {[%clk 0:00:13.4]} 37...
Rc6 {[%clk 0:00:12]} 38. Ne7+ {[%clk 0:00:13]} 1-0

[Event "*** Titled Tuesday Blitz"]
[Site "Chess.com"]
[Date "2018.06.05"]
[Round "2"]
[White "IMAghasiyevKamal"]
[Black "Blitzstream"]
[Result "1-0"]
[WhiteElo "2486"]
[BlackElo "2433"]
[TimeControl "180+2"]
[EndTime "13:25:12 PDT"]
[Termination "IMAghasiyevKamal won by checkmate"]

1. d4 {[%clk 0:02:53.4]} 1... g6 {[%clk 0:02:58.8]} 2. c4 {[%clk 0:02:51]} 2...
Bg7 {[%clk 0:02:59.8]} 3. Nc3 {[%clk 0:02:52]} 3... b6 {[%clk 0:02:58.2]} 4. e4
{[%clk 0:02:51]} 4... Bb7 {[%clk 0:02:59.3]} 5. Nf3 {[%clk 0:02:51.8]} 5... e6
{[%clk 0:03:00.2]} 6. Be2 {[%clk 0:02:38.3]} 6... d6 {[%clk 0:03:01.1]} 7. O-O
{[%clk 0:02:35.3]} 7... Nd7 {[%clk 0:03:02.3]} 8. a4 {[%clk 0:02:29]} 8... a6
{[%clk 0:03:02.7]} 9. a5 {[%clk 0:02:26.2]} 9... Ne7 {[%clk 0:03:03.6]} 10. d5
{[%clk 0:02:24.2]} 10... e5 {[%clk 0:03:03.9]} 11. Ne1 {[%clk 0:02:16.7]} 11...
O-O {[%clk 0:02:57.6]} 12. Nd3 {[%clk 0:02:17.4]} 12... h6 {[%clk 0:02:51]} 13.
Be3 {[%clk 0:02:13.8]} 13... f5 {[%clk 0:02:51.5]} 14. f3 {[%clk 0:02:06.1]}
14... f4 {[%clk 0:02:52.3]} 15. Bf2 {[%clk 0:02:06.8]} 15... g5 {[%clk
0:02:53.7]} 16. b4 {[%clk 0:02:06.7]} 16... Ng6 {[%clk 0:02:43.7]} 17. c5 {[%clk
0:02:05.8]} 17... bxc5 {[%clk 0:02:40.7]} 18. bxc5 {[%clk 0:02:06.8]} 18... Nf6
{[%clk 0:02:40.5]} 19. Na4 {[%clk 0:01:53.1]} 19... g4 {[%clk 0:02:36.8]} 20.
Rb1 {[%clk 0:01:43.2]} 20... Bc8 {[%clk 0:02:36.5]} 21. cxd6 {[%clk 0:01:41.1]}
21... g3 {[%clk 0:02:05.1]} 22. hxg3 {[%clk 0:01:32.9]} 22... fxg3 {[%clk
0:02:05.5]} 23. Bxg3 {[%clk 0:01:34]} 23... cxd6 {[%clk 0:02:06.8]} 24. Nb6
{[%clk 0:01:32.1]} 24... Nh5 {[%clk 0:01:48.5]} 25. Bh2 {[%clk 0:01:31.5]} 25...
Rb8 {[%clk 0:01:24.1]} 26. Nxc8 {[%clk 0:01:28.8]} 26... Rxc8 {[%clk 0:01:26]}
27. Rb6 {[%clk 0:01:24.1]} 27... Nhf4 {[%clk 0:01:11.4]} 28. Nxf4 {[%clk
0:01:22.6]} 28... exf4 {[%clk 0:01:11]} 29. Bxa6 {[%clk 0:01:13.9]} 29... Rc5
{[%clk 0:01:03]} 30. Bb5 {[%clk 0:01:07.5]} 30... Qg5 {[%clk 0:01:00.1]} 31. Qe2
{[%clk 0:01:01.9]} 31... Rfc8 {[%clk 0:00:56.9]} 32. Rc6 {[%clk 0:00:20.2]}
32... R8xc6 {[%clk 0:00:57.4]} 33. Bxc6 {[%clk 0:00:20.5]} 33... Rxa5 {[%clk
0:00:58.3]} 34. Bd7 {[%clk 0:00:21.5]} 34... Qd8 {[%clk 0:00:33]} 35. Be6+
{[%clk 0:00:21.2]} 35... Kh8 {[%clk 0:00:34.1]} 36. Rc1 {[%clk 0:00:19.5]} 36...
Qb6+ {[%clk 0:00:32.2]} 37. Kh1 {[%clk 0:00:20.2]} 37... Rc5 {[%clk 0:00:23.7]}
38. Rxc5 {[%clk 0:00:18.3]} 38... Qxc5 {[%clk 0:00:25.6]} 39. Bg1 {[%clk
0:00:19]} 39... Bd4 {[%clk 0:00:20.3]} 40. Bxd4+ {[%clk 0:00:18]} 40... Qxd4
{[%clk 0:00:22.2]} 41. Qb5 {[%clk 0:00:14.3]} 41... Kg7 {[%clk 0:00:20.3]} 42.
Qd7+ {[%clk 0:00:15]} 42... Kf6 {[%clk 0:00:21.6]} 43. Qf7+ {[%clk 0:00:15.9]}
43... Kg5 {[%clk 0:00:22.9]} 44. Qf5+ {[%clk 0:00:16.9]} 44... Kh4 {[%clk
0:00:24.3]} 45. Qg4# {[%clk 0:00:17.8]} 1-0

[Event "*** Titled Tuesday Blitz"]
[Site "Chess.com"]
[Date "2018.06.05"]
[Round "2"]
[White "Ali_rastbod"]
[Black "GianmarcoVaR"]
[Result "1-0"]
[WhiteElo "2526"]
[BlackElo "2487"]
[TimeControl "180+2"]
[EndTime "13:25:14 PDT"]
[Termination "Ali_rastbod won by checkmate"]

1. c4 {[%clk 0:03:00.4]} 1... Nf6 {[%clk 0:02:59.9]} 2. Nc3 {[%clk 0:03:01.4]}
2... e5 {[%clk 0:03:00.2]} 3. Nf3 {[%clk 0:03:02.2]} 3... Nc6 {[%clk 0:02:53.8]}
4. e4 {[%clk 0:03:03.3]} 4... Bb4 {[%clk 0:02:50.5]} 5. d3 {[%clk 0:03:04.5]}
5... Bxc3+ {[%clk 0:02:50]} 6. bxc3 {[%clk 0:03:04.4]} 6... O-O {[%clk
0:02:48.9]} 7. g3 {[%clk 0:03:04.8]} 7... d6 {[%clk 0:02:49.1]} 8. Bg2 {[%clk
0:03:05.8]} 8... Nd7 {[%clk 0:02:47.4]} 9. O-O {[%clk 0:02:57.8]} 9... Nc5
{[%clk 0:02:47.3]} 10. Nh4 {[%clk 0:02:58]} 10... Bd7 {[%clk 0:02:05.7]} 11. Be3
{[%clk 0:02:42.6]} 11... Re8 {[%clk 0:01:59.4]} 12. Qd2 {[%clk 0:02:29.8]} 12...
a5 {[%clk 0:01:57]} 13. f4 {[%clk 0:02:30.6]} 13... exf4 {[%clk 0:01:56.6]} 14.
Bxf4 {[%clk 0:02:32.5]} 14... Qe7 {[%clk 0:00:52.8]} 15. Qe3 {[%clk 0:02:11.8]}
15... Ne5 {[%clk 0:00:43.3]} 16. Rad1 {[%clk 0:02:11.5]} 16... Ncxd3 {[%clk
0:00:39.3]} 17. Rxd3 {[%clk 0:02:11.7]} 17... Nxd3 {[%clk 0:00:39.8]} 18. Qxd3
{[%clk 0:01:53.9]} 18... g5 {[%clk 0:00:40.2]} 19. Qd2 {[%clk 0:01:55.4]} 19...
gxf4 {[%clk 0:00:40.2]} 20. Qxf4 {[%clk 0:01:54.7]} 20... a4 {[%clk 0:00:34.2]}
21. Nf5 {[%clk 0:01:12.4]} 21... Bxf5 {[%clk 0:00:28.5]} 22. Qxf5 {[%clk
0:01:14.3]} 22... Qe6 {[%clk 0:00:21.7]} 23. Qg5+ {[%clk 0:01:15.5]} 23... Qg6
{[%clk 0:00:22.3]} 24. Qd5 {[%clk 0:01:17]} 24... c6 {[%clk 0:00:21.6]} 25. Qd4
{[%clk 0:01:18.3]} 25... Re7 {[%clk 0:00:18.1]} 26. Rf6 {[%clk 0:01:17.6]} 26...
Qg7 {[%clk 0:00:15.5]} 27. Qxd6 {[%clk 0:01:18.6]} 27... Rae8 {[%clk 0:00:14.9]}
28. Qf4 {[%clk 0:01:18.4]} 28... Re5 {[%clk 0:00:10.5]} 29. h4 {[%clk
0:01:11.8]} 29... R8e6 {[%clk 0:00:11.2]} 30. Rxe6 {[%clk 0:01:10.8]} 30... fxe6
{[%clk 0:00:09.7]} 31. Kh2 {[%clk 0:01:11.7]} 31... Rc5 {[%clk 0:00:08.2]} 32.
Qb8+ {[%clk 0:01:12.7]} 32... Qf8 {[%clk 0:00:07.6]} 33. Qxb7 {[%clk 0:01:13.4]}
33... Rxc4 {[%clk 0:00:07.5]} 34. Qd7 {[%clk 0:01:11.3]} 34... Qf7 {[%clk
0:00:06.1]} 35. Qd8+ {[%clk 0:01:12.7]} 35... Kg7 {[%clk 0:00:05.9]} 36. Qg5+
{[%clk 0:01:10.2]} 36... Kf8 {[%clk 0:00:03.9]} 37. Qe3 {[%clk 0:01:05.9]} 37...
e5 {[%clk 0:00:03.5]} 38. Bh3 {[%clk 0:01:04.1]} 38... Qf6 {[%clk 0:00:04.4]}
39. Bf5 {[%clk 0:01:04.5]} 39... Kg7 {[%clk 0:00:05.4]} 40. Qd3 {[%clk
0:01:03.9]} 40... Qf7 {[%clk 0:00:05.4]} 41. Qf3 {[%clk 0:01:05.2]} 41... h5
{[%clk 0:00:05.5]} 42. Qe3 {[%clk 0:01:06.5]} 42... Kh8 {[%clk 0:00:04.9]} 43.
Qh6+ {[%clk 0:01:06.6]} 43... Kg8 {[%clk 0:00:06.1]} 44. Be6 {[%clk 0:01:07.8]}
44... Rxc3 {[%clk 0:00:04.8]} 45. Qg6+ {[%clk 0:01:08.6]} 45... Kh8 {[%clk
0:00:05.2]} 46. Bxf7 {[%clk 0:00:56.8]} 46... Rc2+ {[%clk 0:00:05.4]} 47. Kh3
{[%clk 0:00:58.2]} 47... Rh2+ {[%clk 0:00:06.2]} 48. Kxh2 {[%clk 0:00:59.6]}
48... a3 {[%clk 0:00:07]} 49. Qh6# {[%clk 0:01:00.7]} 1-0